lending/lending_fUSD_20260411
["ID","MTS","AMOUNT","RATE_DAILY","PERIOD"]
[420256912,1775853045500,-150.02,0.0001401,2]
[420256913,1775853045510,-807.21557407,0.00014015,2]
[420256914,1775853045531,-885.49,0.00014148,2]
[420256915,1775853045541,-2424.0431436,0.0001419,2]
[420256916,1775853045551,-166.66,0.00014316,2]
[420256917,1775853045566,-1347.0,0.00014325,2]
[420256918,1775853045581,-151.242,0.00014325,2]
[420256919,1775853045591,-2471.0,0.00014325,2]
[420256920,1775853045623,-807.21557407,0.00014329,2]
[420256921,1775853045633,-7324.83485222,0.0001439,2]
[420256922,1775853045678,-2351.0,0.00014392,2]
[420256923,1775853045690,-501.73893264,0.00014421,2]
[420256924,1775853045700,-1000.0,0.00014421,2]
[420256926,1775853045732,-1000.0,0.00014421,2]
[420256927,1775853045741,-474.76743542,0.00014421,2]
[420256928,1775853045755,-1000.0,0.00014421,2]
[420256929,1775853045772,-1000.0,0.00014421,2]
[420256930,1775853045782,-1000.0,0.00014421,2]
[420256931,1775853045793,-1000.0,0.00014421,2]
[420256933,1775853045808,-2424.0431436,0.00014434,2]
[420256935,1775853045839,-161.94,0.00014612,2]
[420256936,1775853045849,-807.21557407,0.00014643,2]
[420256937,1775853045868,-500.0,0.00014671,2]
[420256938,1775853045895,-2424.0431436,0.00014678,2]
[420256939,1775853045905,-166.66,0.00014746,2]
[420256940,1775853045914,-433.0,0.00014877,2]
[420256941,1775853045931,-150.02,0.00014886,2]
[420256942,1775853045945,-2424.0431436,0.00014923,2]
[420256943,1775853045955,-807.21557407,0.00014958,2]
[420256944,1775853045965,-1500.0,0.00014968,2]
[420256945,1775853045977,-1500.0,0.00014968,2]
[420256946,1775853046000,-1500.0,0.00014968,2]
[420256947,1775853046009,-1500.0,0.00014968,2]
[420256948,1775853046019,-1500.0,0.00014968,2]
[420256949,1775853046030,-1500.0,0.00014968,2]
[420256950,1775853046044,-2068.49481846,0.00015,2]
[420256951,1775853046055,-300.0,0.00015,2]
[420256952,1775853046065,-657.0,0.00015,2]
[420256953,1775853046084,-500.0,0.00015052,2]
[420256954,1775853046093,-588.4889753,0.00015052,2]
[420256955,1775853046102,-173.6708,0.000151,2]
[420256956,1775853046113,-2424.0431436,0.00015167,2]
[420256957,1775853046130,-166.66,0.00015176,2]
[420256958,1775853046140,-807.21557407,0.00015272,2]
[420256959,1775853046148,-2000.0,0.00015342,2]
[420256960,1775853046158,-2424.0431436,0.00015411,2]
[420256961,1775853046176,-151.0,0.00015426,2]
[420256962,1775853046185,-219.0,0.00015476,2]
[420256963,1775853046207,-30532.140548,0.000155,7]
[420256964,1775853046217,-201.96924575,0.000155,2]
[420256965,1775853046225,-2252.04,0.00015507,2]
[420256966,1775853046234,-1517.45482461,0.00015516,2]
[420256967,1775853046252,-1937.06460635,0.00015516,2]
[420256968,1775853046261,-1000.0,0.00015516,2]
[420256969,1775853046271,-1388.45804923,0.00015516,2]
[420256970,1775853046287,-1000.0,0.00015516,2]
[420256971,1775853046302,-1500.0,0.00015516,2]
[420256972,1775853046311,-161.94,0.00015525,2]
[420256973,1775853046334,-500.0,0.00015573,2]
[420256974,1775853046349,-500.0,0.00015573,2]
[420256975,1775853046359,-500.0,0.00015573,2]
[420256977,1775853046388,-500.0,0.00015573,2]
[420256978,1775853046399,-500.0,0.00015573,2]
[420256979,1775853046415,-500.0,0.00015573,2]
[420256981,1775853046440,-500.0,0.00015573,2]
[420256982,1775853046450,-500.0,0.00015573,2]
[420256983,1775853046482,-500.0,0.00015573,2]
[420256984,1775853046492,-500.0,0.00015573,2]
[420256985,1775853046511,-500.0,0.00015573,2]
[420256986,1775853046524,-500.0,0.00015573,2]
[420256987,1775853046533,-629.57008173,0.00015573,2]
[420256989,1775853046543,-500.0,0.00015573,2]
[420256990,1775853046561,-500.0,0.00015573,2]
[420256991,1775853046571,-500.0,0.00015573,2]
[420256992,1775853046581,-500.0,0.00015573,2]
[420256993,1775853046590,-500.0,0.00015573,2]
[420256994,1775853046606,-500.0,0.00015573,2]
[420256995,1775853046616,-500.0,0.00015573,2]
[420256997,1775853046625,-500.0,0.00015573,2]
[420256999,1775853046638,-500.0,0.00015573,2]
[420257001,1775853046652,-230.66718579,0.00015573,2]
[420257003,1775853046661,-500.0,0.00015573,2]
[420257005,1775853046670,-503.75941467,0.00015573,2]
[420257007,1775853046679,-500.0,0.00015573,2]
[420257009,1775853046689,-325.72004297,0.00015573,2]
[420257011,1775853046699,-500.0,0.00015573,2]
[420257012,1775853046709,-348.41274049,0.00015573,2]
[420257015,1775853046721,-500.0,0.00015573,2]
[420257016,1775853046730,-500.0,0.00015573,2]
[420257018,1775853046742,-504.92397336,0.00015573,2]
[420257020,1775853046753,-500.0,0.00015573,2]
[420257022,1775853046763,-500.0,0.00015573,2]
[420257025,1775853046787,-500.0,0.00015573,2]
[420257027,1775853046807,-245.23784598,0.00015573,2]
[420257029,1775853046818,-506.0,0.00015578,4]
[420257030,1775853046828,-168.0,0.00015578,2]
[420257031,1775853046838,-807.21557407,0.00015586,2]
[420257032,1775853046858,-521.3683501,0.0001559,2]
[420257033,1775853046867,-500.0,0.00015599,2]
[420257034,1775853046877,-500.0,0.00015599,2]
[420257035,1775853046918,-500.0,0.00015599,2]
[420257036,1775853046933,-500.0,0.00015599,2]
[420257037,1775853046947,-360514.56248697,0.000156,2]
[420257038,1775853046957,-304900.06878148,0.000156,2]
[420257039,1775853046969,-152957.09547626,0.000156,2]
[420257040,1775853046985,-2424.0431436,0.00015656,2]
[420257041,1775853046995,-150.16680768,0.0001568,2]
[420257042,1775853047005,-168.0,0.00015717,2]
[420257043,1775853047016,-150.02,0.00015762,2]
[420257044,1775853047487,-150.0,0.00015772,2]
[420257045,1775853047499,-715.89742388,0.000158,2]
[420257046,1775853047516,-150.0,0.00015818,2]
[420257047,1775853047535,-457.0,0.00015827,2]
[420257048,1775853047546,-1045.0,0.00015831,2]
[420257049,1775853047574,-332.0,0.00015833,2]
[420257050,1775853047584,-151.0,0.0001587,2]
[420257051,1775853047595,-167.54354,0.0001587,2]
[420257052,1775853047622,-500.0,0.00015872,2]
[420257053,1775853047631,-500.0,0.00015872,2]
[420257054,1775853047655,-500.0,0.00015872,2]
[420257055,1775853047665,-500.0,0.00015872,2]
[420257056,1775853047691,-258.60706313,0.00015872,2]
[420257057,1775853047703,-216.72574047,0.00015872,2]
[420257058,1775853047714,-500.0,0.0001589,2]
[420257059,1775853047733,-500.0,0.0001589,2]
[420257060,1775853047749,-500.0,0.0001589,2]
[420257061,1775853047765,-500.0,0.0001589,2]
[420257062,1775853047781,-500.0,0.0001589,2]
[420257063,1775853047820,-500.0,0.0001589,2]
[420257064,1775853047840,-517.60492814,0.0001589,2]
[420257065,1775853047855,-2000.0,0.0001589,2]
[420257066,1775853047865,-2252.04,0.00015895,2]
[420257067,1775853047906,-500.0,0.00015899,2]
[420257068,1775853047922,-500.0,0.00015899,2]
[420257069,1775853047944,-396.4808442,0.00015899,2]
[420257070,1775853047955,-151.0,0.00015899,2]
[420257071,1775853047968,-151.0,0.00015899,2]
[420257072,1775853047989,-151.0,0.00015899,2]
[420257073,1775853047999,-617.087443,0.00015899,2]
[420257074,1775853048009,-151.0,0.00015899,2]
[420257075,1775853048022,-617.087443,0.00015899,2]
[420257076,1775853048034,-225.897545,0.00015899,2]
[420257077,1775853048045,-617.087443,0.00015899,2]
[420257078,1775853048054,-617.087443,0.00015899,2]
[420257079,1775853048072,-25000.0,0.000159,3]
[420257080,1775853048084,-24533.98436223,0.000159,3]
[420257081,1775853048093,-2424.0431436,0.000159,2]
[420257082,1775853048104,-807.21557407,0.000159,2]
[420257083,1775853048114,-2000.0,0.000159,2]
[420257084,1775853048125,-178.51943212,0.00015956,2]
[420257085,1775853048137,-182.07511692,0.00015956,2]
[420257086,1775853048150,-183.64642273,0.00015956,2]
[420257087,1775853048161,-1338.89653537,0.00015956,2]
[420257088,1775853048171,-13005.0,0.00015973,2]
[420257089,1775853048182,-521.3683501,0.0001599,2]
[420257090,1775853048194,-2899.76270451,0.00015998,2]
[420257091,1775853048206,-346.7137447,0.00015999,2]
[420257092,1775853048230,-103041.06127949,0.00016,2]
[420257093,1775853048242,-238977.59790125,0.00016,2]
[420257094,1775853048256,-1000.11,0.00016,2]
[420257095,1775853048271,-1000.0,0.00016,2]
[420257096,1775853048288,-370621.41234647,0.00016,2]
[420257097,1775853048324,-530.77985321,0.00016,2]
[420257098,1775853048941,-350.88499915,0.00016,2]
[420257099,1775853048990,-198484.91790083,0.00016,2]
[420257100,1775853049018,-2500.15168303,0.00016,2]
[420257101,1775853049033,-42884.46414847,0.00016,2]
[420257102,1775853049045,-2128.68306836,0.00016,2]
[420257103,1775853049078,-1449.26927114,0.00016,2]
[420257104,1775853049124,-11546.86014265,0.00016,2]
[420257105,1775853049138,-41131.03897419,0.00016,2]
[420257109,1775854232427,-885.56582339,0.00012718,2]
[420257110,1775854232441,-367.55852767,0.00012718,2]
[420257111,1775854232452,-355.00000001,0.00012718,2]
[420257112,1775854232469,-15604.30564893,0.00012718,2]
[420257113,1775854232479,-4550.56,0.00012787,2]
[420257114,1775854232488,-250.0,0.00012796,2]
[420257115,1775854232502,-2000.0,0.00012804,2]
[420257116,1775854232513,-500.0,0.00012804,2]
[420257117,1775854232525,-250.0,0.00012943,2]
[420257118,1775854232535,-250.0,0.00013,2]
[420257119,1775854232547,-506.0,0.000131,2]
[420257120,1775854232565,-500.0,0.00013281,2]
[420257121,1775854232576,-150.0,0.00013346,2]
[420257122,1775854232590,-597.0,0.0001354,2]
[420257123,1775854232606,-1049.0,0.00013557,2]
[420257124,1775854232616,-312644.98657122,0.00013593,2]
[420257125,1775854232632,-791935.53908675,0.00013593,2]
[420257126,1775854232650,-540.36384,0.00013593,2]
[420257127,1775854232662,-985.64644893,0.00013593,2]
[420257128,1775854232674,-2368.72,0.00013593,2]
[420257129,1775854232704,-1095.2419208,0.00013593,2]
[420257130,1775854232717,-571.5092,0.00013593,2]
[420257131,1775854238247,-1125.16,0.00013593,2]
[420257132,1775854238374,-6936.65,0.00013593,2]
[420257133,1775854238388,-646.50864285,0.00013593,2]
[420257134,1775854238501,-1639.00639305,0.00013593,2]
[420257135,1775854238567,-731.049835,0.00013593,2]
[420257136,1775854238616,-197566.94500633,0.00013593,2]
[420257137,1775854238635,-41627.80494876,0.00013593,2]
[420257138,1775854238696,-1343.82,0.00013593,2]
[420257146,1775854240502,-396.46210474,0.00013593,2]
[420257155,1775854242398,-371.64134218,0.00013593,2]
[420257222,1775854244642,-500.0,0.00013592,2]
[420257223,1775854244660,-235.85853736,0.00013592,2]
[420257224,1775854244680,-233.76214604,0.00013592,2]
[420257225,1775854244706,-500.0,0.00013592,2]
[420257226,1775854244784,-400.0,0.00013592,2]
[420257227,1775854244830,-180.66950007,0.00013592,2]
[420257228,1775854244894,-4259.89193845,0.00013593,2]
[420257229,1775854244967,-1500.45805787,0.00013593,2]
[420257230,1775854245002,-1781.41424089,0.00013593,2]
[420257231,1775854245029,-296.29667103,0.00013593,2]
[420257232,1775854245079,-10328.03923245,0.00013593,2]
[420257233,1775854245107,-824.0,0.00013593,2]
[420257235,1775854246758,-1115.30043048,0.00013321,2]
[420257236,1775854246785,-120.03978713,0.00013321,2]
[420257237,1775854246799,-445.5,0.00013321,2]
[420257238,1775854246831,-495.06933719,0.00013321,2]
[420257239,1775854246842,-542.25158998,0.00013593,2]
[420257240,1775854246896,-1098.70356554,0.00013321,2]
[420257241,1775854246914,-3059.81443231,0.00013593,2]
[420257242,1775854249299,-496.57578806,0.00013321,2]
[420257243,1775854249337,-576.46913957,0.00013321,2]
[420257244,1775854249347,-1066.49086268,0.00013321,2]
[420257245,1775854249358,-588.87381929,0.00013592,2]
[420257246,1775854249375,-33803.31370698,0.00013593,2]
[420257265,1775854983777,-300.0,0.00010699,2]
[420257266,1775855101163,300.0,0.00010699,2]
[420257267,1775855101245,1200.0,0.00010699,2]
[420257268,1775855140535,-1930.53884892,0.000107,2]
[420257269,1775855162921,150.0,0.00010699,2]
[420257271,1775855216686,7750.01,9.7e-05,30]
[420257272,1775855216713,10000.01,9.7e-05,30]
[420257273,1775855216745,10000.01,9.7e-05,30]
[420257274,1775855216778,10000.01,9.7e-05,30]
[420257275,1775855216808,10000.01,9.7e-05,30]
[420257276,1775855216847,10000.01,9.7e-05,30]
[420257277,1775855216886,10000.01,9.7e-05,30]
[420257278,1775855216959,10000.01,9.7e-05,30]
[420257279,1775855217045,10000.01,9.7e-05,30]
[420257280,1775855217229,10000.01,9.7e-05,30]
[420257281,1775855217296,3594.99572087,9.7e-05,30]
[420257282,1775855217358,999.54895431,9.7e-05,30]
[420257283,1775855217429,10000.0,9.7e-05,30]
[420257284,1775855221079,-6926.34055675,9.7e-05,30]
[420257285,1775855221298,-10000.01,9.7e-05,30]
[420257286,1775855221380,-300.0,9.699e-05,2]
[420257287,1775855221422,-9700.01,9.7e-05,30]
[420257288,1775855221476,-300.0,9.7e-05,30]
[420257289,1775855221502,-9400.01,9.7e-05,30]
[420257290,1775855221547,-10000.01,9.7e-05,30]
[420257291,1775855221687,-1328.97476807,9.7e-05,30]
[420257292,1775855223886,-420.0,0.00010669,2]
[420257293,1775855342891,150.0,0.00010699,2]
[420257294,1775855401464,960.0,0.00010699,2]
[420257295,1775855417799,8890.01,0.000106,2]
[420257296,1775855417824,1109.99,0.000106,2]
[420257304,1775855432663,-2418.1655902,0.000107,2]
[420257306,1775855432679,-176731.430597,0.000107,2]
[420257307,1775855432696,-193.0,0.00010833,2]
[420257309,1775855432710,-337.86622799,0.00011736,2]
[420257311,1775855432728,-255.0,0.00011737,2]
[420257313,1775855432739,-3861.74214174,0.0001177,2]
[420257315,1775855432753,-196.69422067,0.0001177,2]
[420257317,1775855432774,-600.0,0.0001177,2]
[420257319,1775855432783,-193.0,0.0001177,2]
[420257321,1775855432800,-5000.0,0.0001177,2]
[420257323,1775855432815,-1852.42,0.00012244,2]
[420257325,1775855432824,-177.61,0.00012552,2]
[420257326,1775855432835,-459.16,0.00012618,2]
[420257327,1775855432849,-500.0,0.00012632,3]
[420257328,1775855432858,-2500.0,0.00012699,2]
[420257329,1775855432867,-150.0,0.000127,2]
[420257330,1775855432879,-208.68,0.00012799,2]
[420257331,1775855432894,-1800.85562799,0.00012799,30]
[420257332,1775855432903,-150.0,0.00012799,7]
[420257333,1775855432912,-1453.0,0.00012864,2]
[420257334,1775855432923,-433.0,0.00012871,2]
[420257335,1775855432935,-1242.9962281,0.00012889,2]
[420257336,1775855432944,-9999.99,0.00012893,2]
[420257337,1775855432953,-150.99,0.00012893,2]
[420257338,1775855432963,-999.99,0.00012893,2]
[420257339,1775855432978,-299.99,0.00012893,2]
[420257340,1775855432989,-2336.63,0.00012893,2]
[420257341,1775855432998,-250.0,0.00013,2]
[420257342,1775855433009,-1800.85562799,0.000131,30]
[420257343,1775855433020,-506.0,0.000131,2]
[420257344,1775855433029,-527.0,0.00013137,2]
[420257345,1775855433044,-1578.0,0.00013163,2]
[420257346,1775855433053,-150.0,0.00013287,2]
[420257347,1775855433065,-1800.85562799,0.00013287,30]
[420257348,1775855433075,-1800.85562799,0.0001332,30]
[420257349,1775855433092,-306.06762949,0.0001332,7]
[420257350,1775855433108,-1091.2234308,0.00013321,2]
[420257351,1775855433120,-1109.559471,0.00013321,2]
[420257352,1775855433137,-1060.68933157,0.00013321,2]
[420257353,1775855433153,-1062.37086545,0.00013321,2]
[420257354,1775855433169,-1107.16184977,0.00013321,2]
[420257355,1775855433188,-1025.46735181,0.00013321,2]
[420257356,1775855433203,-1134.53070171,0.00013321,2]
[420257357,1775855433226,-970.23526773,0.00013321,2]
[420257358,1775855433251,-500.0,0.00013324,2]
[420257359,1775855433274,-500.0,0.00013324,2]
[420257360,1775855433290,-500.0,0.00013324,2]
[420257361,1775855433307,-500.0,0.00013324,2]
[420257362,1775855433327,-250.0,0.00013324,2]
[420257363,1775855433344,-9904.06909975,0.00013325,2]
[420257364,1775855433366,-239.36767679,0.00013325,2]
[420257365,1775855433379,-972.87753508,0.00013325,2]
[420257366,1775855433395,-250.0,0.00013344,2]
[420257367,1775855433415,-150.23198712,0.00013391,2]
[420257368,1775855433431,-500.0,0.000134,2]
[420257369,1775855433443,-500.0,0.000134,2]
[420257370,1775855433457,-500.0,0.000134,2]
[420257371,1775855433474,-302.91725185,0.000134,2]
[420257372,1775855433485,-165.10097615,0.000134,2]
[420257373,1775855433496,-500.0,0.000134,2]
[420257374,1775855433506,-500.0,0.000134,2]
[420257375,1775855433528,-521.57050191,0.000134,2]
[420257376,1775855433540,-209.07850965,0.000134,2]
[420257377,1775855433550,-1000.0,0.00013401,2]
[420257378,1775855433572,-2933.32,0.00013401,2]
[420257379,1775855433583,-129233.09117493,0.00013401,2]
[420257380,1775855433808,-900.0,0.00013401,2]
[420257383,1775855438583,-469.65730097,0.00013401,2]
[420257384,1775855438624,-1639.00639305,0.00013401,2]
[420257385,1775855438707,-53067.82547796,0.00013401,2]
[420257386,1775855438815,-3487.1,0.00013401,2]
[420257387,1775855438902,-301.76454383,0.00013401,2]
[420257415,1775855440854,-511.95657192,0.00013401,2]
[420257417,1775855442955,-2087.35561169,0.00013401,2]
[420257423,1775855443684,-36707.43567493,0.00013401,2]
[420257424,1775855443735,-4751.06323546,0.00013401,2]
[420257437,1775855446480,-1104.77146607,0.00013401,2]
[420257438,1775855446647,-440.71148856,0.00013401,2]
[420257439,1775855446674,-135655.30297148,0.00013401,2]
[420257441,1775855446721,-11063.5453935,0.00013401,2]
[420257447,1775855756534,250.0,6.279e-05,2]
[420257448,1775855756750,250.0,6.61e-05,2]
[420257449,1775855756960,250.0,6.94e-05,2]
[420257450,1775855757383,250.0,7.271e-05,2]
[420257451,1775855757563,250.0,7.601e-05,2]
[420257452,1775855758070,250.0,7.932e-05,2]
[420257453,1775855758279,250.0,8.262e-05,2]
[420257454,1775855758494,250.0,8.593e-05,2]
[420257455,1775855758782,250.0,8.923e-05,2]
[420257456,1775855759010,250.0,9.254e-05,2]
[420257457,1775855759215,250.0,9.584e-05,2]
[420257458,1775855759761,250.0,9.915e-05,2]
[420257459,1775855759967,250.0,0.00010245,2]
[420257460,1775855760157,250.0,0.00010576,2]
[420257464,1775856631531,-250.0,0.00010906,2]
[420257465,1775856631547,-250.0,0.00011237,2]
[420257466,1775856631560,-250.0,0.00011567,2]
[420257467,1775856631584,-312.92874214,0.00011737,2]
[420257468,1775856631593,-2000.0,0.0001187,2]
[420257469,1775856631613,-250.0,0.00011898,2]
[420257470,1775856631630,-1049.14,0.00011982,2]
[420257471,1775856631639,-193.0,0.00011997,2]
[420257472,1775856631651,-3220.82328313,0.00011997,2]
[420257473,1775856631665,-250.0,0.00011997,2]
[420257474,1775856631680,-250.0,0.00011997,2]
[420257475,1775856631690,-1498.08,0.00012042,2]
[420257476,1775856631708,-725.43,0.00012057,2]
[420257477,1775856631724,-150.0,0.000122,2]
[420257478,1775856631733,-250.0,0.00012228,2]
[420257479,1775856631751,-200.0,0.00012334,2]
[420257480,1775856631770,-1600.0,0.00012559,2]
[420257481,1775856631783,-250.0,0.00012559,2]
[420257482,1775856631810,-200.0,0.000126,4]
[420257483,1775856631819,-5840.25,0.00012639,2]
[420257484,1775856631832,-1500.0,0.00012658,2]
[420257485,1775856631857,-1128.46,0.00012658,2]
[420257486,1775856631867,-500.0,0.000127,4]
[420257487,1775856631897,-700.0,0.000128,4]
[420257489,1775856631908,-1000.0,0.000129,4]
[420257491,1775856631930,-166.01,0.00012971,2]
[420257493,1775856631942,-150.0,0.00013093,2]
[420257495,1775856631951,-2500.0,0.00013093,2]
[420257497,1775856631963,-1443.06446612,0.00013094,2]
[420257499,1775856631978,-12565.30842912,0.00013094,2]
[420257501,1775856631987,-1390.42886195,0.00013094,2]
[420257503,1775856632000,-5020.05624705,0.00013094,2]
[420257505,1775856632018,-150.08868781,0.00013094,2]
[420257507,1775856632027,-506.0,0.000131,2]
[420257509,1775856632037,-5000.0,0.00013193,2]
[420257511,1775856632059,-152687.42840282,0.00013193,2]
[420257513,1775856632070,-128449.613483,0.00013193,2]
[420257515,1775856632082,-31378.71001035,0.00013193,2]
[420257518,1775856632114,-515.95471448,0.00013193,2]
[420257521,1775856632283,-587.92532615,0.00013193,2]
[420257522,1775856632361,-376.36,0.00013193,2]
[420257526,1775856640044,-492.65507974,0.00012929,2]
[420257527,1775856640060,-1326.21998675,0.00012929,2]
[420257528,1775856640071,-5000.0,0.00013093,2]
[420257529,1775856640081,-241.23666765,0.00013094,2]
[420257530,1775856640091,-240.83906902,0.00013183,2]
[420257531,1775856640106,-246531.44959437,0.00013193,2]
[420257532,1775856640122,-12261.14410848,0.00013193,2]
[420257533,1775856640489,-1287.1,0.00013193,2]
[420257534,1775856640661,-751.01483522,0.00013193,2]
[420257535,1775856640685,-1345.75385339,0.00013193,2]
[420257536,1775856640743,-1219.17117707,0.00013193,2]
[420257537,1775856640775,-883.15138334,0.00013193,2]
[420257538,1775856640792,-542.688,0.00013193,2]
[420257539,1775856640835,-616.0,0.00013193,2]
[420257540,1775856640883,-381.56271105,0.00013193,2]
[420257554,1775856642683,-2170.86881757,0.00013193,2]
[420257555,1775856644178,-396536.57968047,0.00013193,2]
[420257556,1775856644194,-38403.48642795,0.00013193,2]
[420257557,1775856644208,-987.61314542,0.00013193,2]
[420257558,1775856644224,-482086.42432887,0.00013193,2]
[420257559,1775856644239,-179.29387786,0.00013194,2]
[420257560,1775856644250,-4721.20598946,0.00013198,2]
[420257561,1775856644261,-351.10665947,0.00013198,2]
[420257563,1775856644271,-10653.78412768,0.00013198,2]
[420257564,1775856644292,-151.0,0.00013252,2]
[420257566,1775856644301,-151.0,0.00013252,2]
[420257567,1775856644313,-151.0,0.00013252,2]
[420257568,1775856644331,-151.0,0.00013252,2]
[420257569,1775856644343,-151.0,0.00013252,2]
[420257570,1775856644353,-151.0,0.00013252,2]
[420257571,1775856644376,-151.0,0.00013252,2]
[420257572,1775856644387,-151.0,0.00013252,2]
[420257573,1775856644397,-151.0,0.00013252,2]
[420257574,1775856644415,-151.0,0.00013252,2]
[420257575,1775856644428,-151.0,0.00013252,2]
[420257576,1775856644437,-151.0,0.00013252,2]
[420257577,1775856644451,-200.0,0.00013252,2]
[420257578,1775856644460,-151.0,0.00013252,2]
[420257579,1775856644470,-500.0,0.00013252,2]
[420257580,1775856644479,-500.0,0.00013252,2]
[420257581,1775856644489,-500.0,0.00013252,2]
[420257582,1775856644498,-500.0,0.00013252,2]
[420257583,1775856644507,-151.0,0.00013252,2]
[420257584,1775856644517,-151.0,0.00013252,2]
[420257585,1775856644526,-151.0,0.00013252,2]
[420257586,1775856644536,-151.0,0.00013252,2]
[420257587,1775856644546,-151.0,0.00013252,2]
[420257588,1775856644555,-151.0,0.00013252,2]
[420257589,1775856644564,-1199.20597015,0.00013252,2]
[420257590,1775856644574,-151.0,0.00013252,2]
[420257591,1775856644583,-151.0,0.00013252,2]
[420257592,1775856644593,-151.0,0.00013252,2]
[420257593,1775856644603,-151.0,0.00013252,2]
[420257594,1775856644615,-151.0,0.00013252,2]
[420257595,1775856644624,-151.0,0.00013252,2]
[420257596,1775856644633,-151.0,0.00013252,2]
[420257597,1775856644644,-151.0,0.00013252,2]
[420257598,1775856644657,-151.0,0.00013252,2]
[420257599,1775856644668,-151.0,0.00013252,2]
[420257600,1775856644678,-151.0,0.00013252,2]
[420257601,1775856644690,-151.0,0.00013252,2]
[420257602,1775856644706,-151.0,0.00013252,2]
[420257603,1775856644716,-151.0,0.00013252,2]
[420257604,1775856644730,-14382.40600272,0.0001326,2]
[420257607,1775856646409,-2539.65803598,0.00013093,2]
[420257608,1775856646459,-4510.93270545,0.00013093,2]
[420257610,1775856810563,150.0,0.000161,120]
[420257628,1775857831885,-150.0,0.00011372,2]
[420257629,1775857831903,-250.0,0.00011548,2]
[420257630,1775857831928,-150.0,0.00011724,2]
[420257631,1775857831943,-1188.42,0.00011939,2]
[420257632,1775857831972,-1852.42,0.00012064,2]
[420257633,1775857831988,-3542.01,0.00012086,2]
[420257634,1775857832049,-155.88,0.00012178,2]
[420257635,1775857832106,-150.0,0.00012284,2]
[420257636,1775857832127,-194.6134,0.00012458,2]
[420257637,1775857832148,-195.0,0.00012509,2]
[420257638,1775857832158,-339.24114641,0.00012509,2]
[420257639,1775857832179,-250.0,0.00012509,2]
[420257640,1775857832190,-300.0,0.00012556,2]
[420257641,1775857832201,-296.0,0.00012556,2]
[420257642,1775857832214,-300.0,0.00012557,2]
[420257643,1775857832227,-20192.2355,0.00012558,2]
[420257644,1775857832243,-152.39979618,0.00012692,2]
[420257646,1775857832254,-279.53982674,0.00012692,2]
[420257648,1775857832266,-834.0,0.00012766,2]
[420257649,1775857832292,-476.0,0.00012766,2]
[420257650,1775857832302,-382.0,0.00012792,2]
[420257651,1775857832336,-500.0,0.000128,4]
[420257652,1775857832351,-1002.63617464,0.000128,2]
[420257653,1775857832443,-1862.0,0.00012801,2]
[420257654,1775857832562,-458.08419038,0.00012817,2]
[420257655,1775857832618,-155.88,0.00012855,2]
[420257656,1775857832632,-500.0,0.00012873,2]
[420257657,1775857832657,-334.34882938,0.00012883,2]
[420257658,1775857832672,-739249.93856655,0.00012893,2]
[420257659,1775857832691,-45386.38845746,0.00012893,2]
[420257660,1775857832709,-69230.61289652,0.00012893,2]
[420257661,1775857832725,-51945.7049507,0.00012893,2]
[420257662,1775857832746,-823.641,0.00012893,2]
[420257687,1775857838909,-500.0,0.00012536,2]
[420257692,1775857838974,-253.97489954,0.00012536,2]
[420257694,1775857838989,-348.99916546,0.00012893,2]
[420257697,1775857839008,-1906.9044813,0.00012893,2]
[420257699,1775857839030,-4730.75089867,0.00012893,2]
[420257702,1775857839057,-336.64042432,0.00012893,2]
[420257749,1775857842986,-151.0,0.0001262,2]